[Event "Early-Titled-Tuesday-Blitz-March-12-2024"]
[Site "Chess.com"]
[Date "2024.03.12"]
[Round "2"]
[White "RebelJohnny"]
[Black "agvega14"]
[Result "1-0"]
[WhiteElo "2510"]
[BlackElo "2208"]
[TimeControl "180+1"]
[EndTime "8:18:05 PDT"]
[Termination "RebelJohnny won on time"]

1. e4 {[%clk 0:03:00.9]} 1... c5 {[%clk 0:02:57.7]} 2. Nf3 {[%clk 0:03:01.1]}
2... a6 {[%clk 0:02:57.8]} 3. c3 {[%clk 0:03:00.9]} 3... Nf6 {[%clk 0:02:57.5]}
4. e5 {[%clk 0:02:58.8]} 4... Nd5 {[%clk 0:02:58.1]} 5. d4 {[%clk 0:02:38.7]}
5... cxd4 {[%clk 0:02:57.7]} 6. Bc4 {[%clk 0:02:39.3]} 6... Nb6 {[%clk
0:02:54.6]} 7. Bb3 {[%clk 0:02:39.9]} 7... d5 {[%clk 0:02:54.6]} 8. exd6 {[%clk
0:02:38.1]} 8... Qxd6 {[%clk 0:02:53.3]} 9. O-O {[%clk 0:02:38.2]} 9... Nc6
{[%clk 0:02:51.4]} 10. cxd4 {[%clk 0:02:33.8]} 10... e6 {[%clk 0:02:51.4]} 11.
Nc3 {[%clk 0:02:32]} 11... Nb4 {[%clk 0:02:37.4]} 12. a3 {[%clk 0:01:57.8]}
12... N4d5 {[%clk 0:02:35.7]} 13. Ne4 {[%clk 0:01:58.1]} 13... Qd8 {[%clk
0:02:33.7]} 14. Nfg5 {[%clk 0:01:23.5]} 14... Be7 {[%clk 0:02:20.6]} 15. Qh5
{[%clk 0:01:19.7]} 15... g6 {[%clk 0:02:15.9]} 16. Qf3 {[%clk 0:01:16]} 16... f5
{[%clk 0:02:13.5]} 17. h4 {[%clk 0:00:43]} 17... O-O {[%clk 0:02:00.6]} 18. Nc5
{[%clk 0:00:38.3]} 18... Qd6 {[%clk 0:00:45.8]} 19. Re1 {[%clk 0:00:32]} 19...
Rf6 {[%clk 0:00:45.5]} 20. Nh3 {[%clk 0:00:16.2]} 20... a5 {[%clk 0:00:38.6]}
21. Nf4 {[%clk 0:00:16.3]} 21... a4 {[%clk 0:00:37]} 22. Nxd5 {[%clk 0:00:15.2]}
22... Nxd5 {[%clk 0:00:32.3]} 23. Bxd5 {[%clk 0:00:15.5]} 23... exd5 {[%clk
0:00:30.1]} 24. Bf4 {[%clk 0:00:16]} 24... Qd8 {[%clk 0:00:25.9]} 25. Bg5 {[%clk
0:00:16.3]} 25... Rf7 {[%clk 0:00:16.9]} 26. Bxe7 {[%clk 0:00:16.7]} 26... Rxe7
{[%clk 0:00:17.2]} 27. Rxe7 {[%clk 0:00:17.6]} 27... Qxe7 {[%clk 0:00:17.5]} 28.
Qxd5+ {[%clk 0:00:18.2]} 28... Kg7 {[%clk 0:00:17.7]} 29. Kf1 {[%clk 0:00:09.1]}
29... Ra5 {[%clk 0:00:16.2]} 30. Re1 {[%clk 0:00:09.1]} 30... Qc7 {[%clk
0:00:11.1]} 31. Qe5+ {[%clk 0:00:06]} 31... Qxe5 {[%clk 0:00:11]} 32. Rxe5
{[%clk 0:00:06.9]} 32... b6 {[%clk 0:00:09.7]} 33. Nd3 {[%clk 0:00:06.2]} 33...
Rxe5 {[%clk 0:00:08.8]} 34. dxe5 {[%clk 0:00:07.1]} 34... Be6 {[%clk 0:00:08.7]}
35. Ke2 {[%clk 0:00:07.1]} 35... h6 {[%clk 0:00:07.8]} 36. Ke3 {[%clk
0:00:07.2]} 36... g5 {[%clk 0:00:07.6]} 37. hxg5 {[%clk 0:00:07.9]} 37... hxg5
{[%clk 0:00:08.5]} 38. f4 {[%clk 0:00:08.6]} 38... g4 {[%clk 0:00:08.2]} 39. g3
{[%clk 0:00:08.1]} 39... Kf7 {[%clk 0:00:08.6]} 40. Kd4 {[%clk 0:00:08.3]} 40...
Ke7 {[%clk 0:00:09.3]} 41. Kc3 {[%clk 0:00:08.7]} 41... Kd7 {[%clk 0:00:10]} 42.
Kb4 {[%clk 0:00:09.3]} 42... Bb3 {[%clk 0:00:09.3]} 43. Nc1 {[%clk 0:00:07.1]}
43... Bd1 {[%clk 0:00:08]} 44. Na2 {[%clk 0:00:07.2]} 44... Bb3 {[%clk
0:00:01.7]} 45. Nc3 {[%clk 0:00:08.1]} 1-0

[Event "Early-Titled-Tuesday-Blitz-March-12-2024"]
[Site "Chess.com"]
[Date "2024.03.12"]
[Round "2"]
[White "Hovik_Hayrapetyan"]
[Black "Ginger_GM"]
[Result "1-0"]
[WhiteElo "2845"]
[BlackElo "2570"]
[TimeControl "180+1"]
[EndTime "8:18:09 PDT"]
[Termination "Hovik_Hayrapetyan won by resignation"]

1. d4 {[%clk 0:03:00.9]} 1... e6 {[%clk 0:02:59.5]} 2. c4 {[%clk 0:03:00.4]}
2... f5 {[%clk 0:02:58.9]} 3. Nc3 {[%clk 0:02:59.7]} 3... Nf6 {[%clk 0:02:59.1]}
4. g3 {[%clk 0:02:58.6]} 4... Be7 {[%clk 0:02:59.1]} 5. Bg2 {[%clk 0:02:58.8]}
5... O-O {[%clk 0:02:59.2]} 6. Nh3 {[%clk 0:02:59.1]} 6... d6 {[%clk 0:02:59.1]}
7. Nf4 {[%clk 0:02:59.4]} 7... c6 {[%clk 0:02:57.4]} 8. d5 {[%clk 0:02:58]} 8...
e5 {[%clk 0:02:53.4]} 9. dxc6 {[%clk 0:02:41.2]} 9... bxc6 {[%clk 0:02:49.1]}
10. Nd3 {[%clk 0:02:41.5]} 10... Be6 {[%clk 0:02:29.2]} 11. c5 {[%clk
0:02:33.8]} 11... e4 {[%clk 0:02:23.7]} 12. Nf4 {[%clk 0:02:32.9]} 12... Bf7
{[%clk 0:02:23.2]} 13. cxd6 {[%clk 0:02:32.1]} 13... Bxd6 {[%clk 0:02:22.9]} 14.
h4 {[%clk 0:02:26.4]} 14... Qe7 {[%clk 0:02:17.6]} 15. h5 {[%clk 0:02:19.8]}
15... Nbd7 {[%clk 0:02:14]} 16. Bh3 {[%clk 0:02:18.4]} 16... Ng4 {[%clk
0:01:57.6]} 17. Bxg4 {[%clk 0:02:18]} 17... fxg4 {[%clk 0:01:57.1]} 18. Qc2
{[%clk 0:02:17.6]} 18... Nf6 {[%clk 0:01:52.7]} 19. Be3 {[%clk 0:02:14.3]} 19...
Rab8 {[%clk 0:01:45]} 20. Rd1 {[%clk 0:02:07.1]} 20... Bc5 {[%clk 0:01:37.4]}
21. Ncd5 {[%clk 0:01:33.1]} 21... cxd5 {[%clk 0:01:17.1]} 22. Qxc5 {[%clk
0:01:31.7]} 22... Qxc5 {[%clk 0:00:45.2]} 23. Bxc5 {[%clk 0:01:32.6]} 23... Rfc8
{[%clk 0:00:39.3]} 24. Bd4 {[%clk 0:01:32.5]} 24... Ne8 {[%clk 0:00:33.3]} 25.
Kd2 {[%clk 0:01:19]} 25... Rb4 {[%clk 0:00:29.1]} 26. e3 {[%clk 0:01:10.5]}
26... Nd6 {[%clk 0:00:28.4]} 27. b3 {[%clk 0:01:08.9]} 27... Nf5 {[%clk
0:00:27.7]} 28. Rc1 {[%clk 0:00:59]} 28... Rbb8 {[%clk 0:00:19.9]} 29. Bxa7
{[%clk 0:00:51.7]} 29... Ra8 {[%clk 0:00:19.5]} 30. Rxc8+ {[%clk 0:00:51.7]}
30... Rxc8 {[%clk 0:00:19.3]} 31. Rc1 {[%clk 0:00:52.2]} 31... Ra8 {[%clk
0:00:18.5]} 32. Rc7 {[%clk 0:00:51.6]} 32... Nd6 {[%clk 0:00:18.6]} 33. a4
{[%clk 0:00:49.6]} 33... Ne8 {[%clk 0:00:18.2]} 34. Rb7 {[%clk 0:00:47.3]} 34...
Nd6 {[%clk 0:00:17.8]} 35. Rb8+ {[%clk 0:00:47.6]} 35... Rxb8 {[%clk 0:00:17.6]}
36. Bxb8 {[%clk 0:00:48.5]} 36... Nb7 {[%clk 0:00:17.6]} 37. b4 {[%clk
0:00:47.6]} 37... Be8 {[%clk 0:00:16.7]} 38. a5 {[%clk 0:00:46.1]} 38... Bc6
{[%clk 0:00:16.2]} 39. Nxd5 {[%clk 0:00:46.7]} 39... Bxd5 {[%clk 0:00:16]} 40.
Kc3 {[%clk 0:00:43.9]} 40... Nd8 {[%clk 0:00:14.4]} 41. Kd4 {[%clk 0:00:41.3]}
41... Bc6 {[%clk 0:00:14]} 42. Kc5 {[%clk 0:00:40.9]} 42... Ba8 {[%clk
0:00:12.1]} 43. b5 {[%clk 0:00:34.7]} 43... Nb7+ {[%clk 0:00:11.9]} 44. Kb6
{[%clk 0:00:34.5]} 44... Nxa5 {[%clk 0:00:12.8]} 45. Kxa5 {[%clk 0:00:34.6]}
45... Kf7 {[%clk 0:00:13.6]} 46. Kb6 {[%clk 0:00:33.8]} 46... Ke6 {[%clk
0:00:14.1]} 47. Kc7 {[%clk 0:00:31]} 47... Kf5 {[%clk 0:00:12.9]} 48. b6 {[%clk
0:00:25.2]} 48... Kg5 {[%clk 0:00:13.3]} 49. b7 {[%clk 0:00:25.5]} 49... Bxb7
{[%clk 0:00:13.8]} 50. Kxb7 {[%clk 0:00:26.4]} 50... Kxh5 {[%clk 0:00:14.5]} 51.
Kc6 {[%clk 0:00:26.9]} 51... Kg5 {[%clk 0:00:14.8]} 52. Kd5 {[%clk 0:00:27.4]}
52... Kf5 {[%clk 0:00:14.8]} 53. Bc7 {[%clk 0:00:22.7]} 53... g5 {[%clk
0:00:14.9]} 54. Bd8 {[%clk 0:00:22]} 54... h5 {[%clk 0:00:13.7]} 55. Kd4 {[%clk
0:00:22]} 1-0

[Event "Early-Titled-Tuesday-Blitz-March-12-2024"]
[Site "Chess.com"]
[Date "2024.03.12"]
[Round "2"]
[White "VinzentSpitzl"]
[Black "scrambleyourbrain"]
[Result "1/2-1/2"]
[WhiteElo "2569"]
[BlackElo "2372"]
[TimeControl "180+1"]
[EndTime "8:18:13 PDT"]
[Termination "Game drawn by repetition"]

1. e4 {[%clk 0:03:00.9]} 1... e5 {[%clk 0:02:59.8]} 2. Nf3 {[%clk 0:03:00.9]}
2... Nc6 {[%clk 0:03:00.1]} 3. Bb5 {[%clk 0:03:01.2]} 3... a6 {[%clk 0:03:00]}
4. Ba4 {[%clk 0:03:01.3]} 4... Nf6 {[%clk 0:03:00.3]} 5. O-O {[%clk 0:03:01.5]}
5... Be7 {[%clk 0:03:00.8]} 6. Re1 {[%clk 0:03:01.5]} 6... b5 {[%clk 0:03:01.2]}
7. Bb3 {[%clk 0:03:01.3]} 7... d6 {[%clk 0:03:01.7]} 8. c3 {[%clk 0:03:00.9]}
8... O-O {[%clk 0:03:02.4]} 9. h3 {[%clk 0:03:01]} 9... Na5 {[%clk 0:03:03.1]}
10. Bc2 {[%clk 0:03:01.2]} 10... c5 {[%clk 0:03:03.9]} 11. d4 {[%clk 0:03:01.5]}
11... Qc7 {[%clk 0:03:04.1]} 12. d5 {[%clk 0:03:01.8]} 12... Nd7 {[%clk
0:03:02.2]} 13. a4 {[%clk 0:03:00.2]} 13... b4 {[%clk 0:02:54.9]} 14. Nbd2
{[%clk 0:02:45.7]} 14... Nb6 {[%clk 0:02:52.2]} 15. Qe2 {[%clk 0:02:45.4]} 15...
f5 {[%clk 0:02:40.3]} 16. c4 {[%clk 0:02:44.3]} 16... f4 {[%clk 0:02:37.6]} 17.
b3 {[%clk 0:02:36.4]} 17... Bf6 {[%clk 0:02:33.6]} 18. Nh2 {[%clk 0:02:32.2]}
18... Qf7 {[%clk 0:02:25.2]} 19. Bd1 {[%clk 0:02:30.5]} 19... Kh8 {[%clk
0:02:12.1]} 20. Qd3 {[%clk 0:02:28.3]} 20... Bd7 {[%clk 0:02:09.5]} 21. Bg4
{[%clk 0:02:27.8]} 21... Bxg4 {[%clk 0:02:05.1]} 22. hxg4 {[%clk 0:02:18.6]}
22... g5 {[%clk 0:01:51.1]} 23. Qh3 {[%clk 0:02:15.4]} 23... Kg7 {[%clk
0:01:50.3]} 24. Qh5 {[%clk 0:02:11.4]} 24... Qxh5 {[%clk 0:01:46.6]} 25. gxh5
{[%clk 0:02:07.9]} 25... Kh6 {[%clk 0:01:46.7]} 26. g4 {[%clk 0:02:05.6]} 26...
fxg3 {[%clk 0:01:46.3]} 27. fxg3 {[%clk 0:02:05.5]} 27... Kxh5 {[%clk
0:01:46.5]} 28. g4+ {[%clk 0:02:05.1]} 28... Kg6 {[%clk 0:01:46.4]} 29. Rf1
{[%clk 0:01:49.3]} 29... Be7 {[%clk 0:01:43.9]} 30. Rf5 {[%clk 0:01:47]} 30...
h5 {[%clk 0:01:40]} 31. Rb1 {[%clk 0:01:16.1]} 31... hxg4 {[%clk 0:01:12.5]} 32.
Nxg4 {[%clk 0:01:02.6]} 32... Rxf5 {[%clk 0:01:11.4]} 33. exf5+ {[%clk 0:01:03]}
33... Kxf5 {[%clk 0:01:12.1]} 34. Ne3+ {[%clk 0:01:03.6]} 34... Kg6 {[%clk
0:01:11.4]} 35. Ne4 {[%clk 0:01:03.1]} 35... Rf8 {[%clk 0:01:10.7]} 36. Kg2
{[%clk 0:00:58.9]} 36... Nd7 {[%clk 0:01:09.7]} 37. Ng4 {[%clk 0:00:46.1]} 37...
Nb7 {[%clk 0:00:47.8]} 38. Be3 {[%clk 0:00:41.8]} 38... a5 {[%clk 0:00:47.9]}
39. Rh1 {[%clk 0:00:39]} 39... Rf5 {[%clk 0:00:33.5]} 40. Rh6+ {[%clk
0:00:34.2]} 40... Kg7 {[%clk 0:00:33.1]} 41. Rh5 {[%clk 0:00:32.1]} 41... Kg6
{[%clk 0:00:30.3]} 42. Rh8 {[%clk 0:00:31.7]} 42... Nd8 {[%clk 0:00:29.6]} 43.
Re8 {[%clk 0:00:28.7]} 43... Kf7 {[%clk 0:00:28.8]} 44. Nxd6+ {[%clk 0:00:23]}
44... Bxd6 {[%clk 0:00:27.1]} 45. Rxd8 {[%clk 0:00:23.2]} 45... Ke7 {[%clk
0:00:26.9]} 46. Ra8 {[%clk 0:00:19.9]} 46... Bc7 {[%clk 0:00:26.2]} 47. Ra7
{[%clk 0:00:19.4]} 47... Kd6 {[%clk 0:00:23.3]} 48. Nh6 {[%clk 0:00:19.4]} 48...
Rf6 {[%clk 0:00:22.6]} 49. Ng4 {[%clk 0:00:19.7]} 49... Rf5 {[%clk 0:00:22.7]}
50. Ra6+ {[%clk 0:00:15.9]} 50... Ke7 {[%clk 0:00:21.4]} 51. Rc6 {[%clk
0:00:14.6]} 51... Bd6 {[%clk 0:00:17.7]} 52. Ra6 {[%clk 0:00:14.3]} 52... Bc7
{[%clk 0:00:17.5]} 53. Ra7 {[%clk 0:00:14.3]} 53... Kd6 {[%clk 0:00:16.3]}
1/2-1/2

[Event "Early-Titled-Tuesday-Blitz-March-12-2024"]
[Site "Chess.com"]
[Date "2024.03.12"]
[Round "2"]
[White "Andrei_Skvortsov"]
[Black "Yonousomodulo"]
[Result "1-0"]
[WhiteElo "2781"]
[BlackElo "2467"]
[TimeControl "180+1"]
[EndTime "8:18:15 PDT"]
[Termination "Andrei_Skvortsov won by checkmate"]

1. e4 {[%clk 0:03:00.9]} 1... c6 {[%clk 0:03:00.1]} 2. d4 {[%clk 0:02:55.5]}
2... d5 {[%clk 0:03:00.5]} 3. e5 {[%clk 0:02:55.2]} 3... Bf5 {[%clk 0:03:00.6]}
4. h4 {[%clk 0:02:55.9]} 4... h6 {[%clk 0:03:00.4]} 5. g4 {[%clk 0:02:55.1]}
5... Bd7 {[%clk 0:03:00.7]} 6. h5 {[%clk 0:02:55]} 6... c5 {[%clk 0:03:00.4]} 7.
c3 {[%clk 0:02:49.2]} 7... Nc6 {[%clk 0:02:57.5]} 8. f4 {[%clk 0:02:41.5]} 8...
Qa5 {[%clk 0:02:56]} 9. dxc5 {[%clk 0:02:38.7]} 9... Qxc5 {[%clk 0:02:52.6]} 10.
b4 {[%clk 0:02:38.1]} 10... Nxb4 {[%clk 0:02:45.3]} 11. cxb4 {[%clk 0:02:34.9]}
11... Qxb4+ {[%clk 0:02:45.6]} 12. Kf2 {[%clk 0:02:35]} 12... e6 {[%clk
0:02:37.7]} 13. Kg3 {[%clk 0:02:34.3]} 13... Rc8 {[%clk 0:02:20.7]} 14. Nf3
{[%clk 0:02:28.2]} 14... Bc5 {[%clk 0:02:05.5]} 15. Ba3 {[%clk 0:02:20.1]} 15...
Qb6 {[%clk 0:02:05]} 16. Bxc5 {[%clk 0:02:20.4]} 16... Rxc5 {[%clk 0:02:04.1]}
17. Qd4 {[%clk 0:02:17.8]} 17... Ne7 {[%clk 0:02:01.6]} 18. Nbd2 {[%clk
0:02:15.2]} 18... O-O {[%clk 0:01:49.9]} 19. Rb1 {[%clk 0:02:14.1]} 19... Qc7
{[%clk 0:01:49.2]} 20. Nb3 {[%clk 0:02:10.8]} 20... Rc3 {[%clk 0:01:44.7]} 21.
Rh2 {[%clk 0:02:03]} 21... f6 {[%clk 0:01:44.7]} 22. Re2 {[%clk 0:01:46.4]}
22... Rc4 {[%clk 0:01:30.3]} 23. Qd2 {[%clk 0:01:40.8]} 23... fxe5 {[%clk
0:01:28.5]} 24. fxe5 {[%clk 0:01:35.1]} 24... Nc6 {[%clk 0:01:11.1]} 25. Rbe1
{[%clk 0:01:29.7]} 25... Qb6 {[%clk 0:00:58.8]} 26. Re3 {[%clk 0:01:25.2]} 26...
Rcf4 {[%clk 0:00:56.5]} 27. Bg2 {[%clk 0:01:23.3]} 27... a5 {[%clk 0:00:33.1]}
28. Nbd4 {[%clk 0:01:20.1]} 28... Nxd4 {[%clk 0:00:24.8]} 29. Nxd4 {[%clk
0:01:18.1]} 29... Qxd4 {[%clk 0:00:22.4]} 30. Qxd4 {[%clk 0:01:18]} 30... Rxd4
{[%clk 0:00:23.3]} 31. Rc1 {[%clk 0:01:15.7]} 31... Bc6 {[%clk 0:00:22.8]} 32.
Rc5 {[%clk 0:01:11.5]} 32... a4 {[%clk 0:00:22.4]} 33. a3 {[%clk 0:01:09.4]}
33... Rff4 {[%clk 0:00:20.7]} 34. Bf3 {[%clk 0:01:09.2]} 34... Rc4 {[%clk
0:00:20.7]} 35. Rc3 {[%clk 0:00:59.5]} 35... Rxc3 {[%clk 0:00:18.2]} 36. Rxc3
{[%clk 0:00:59.2]} 36... Rc4 {[%clk 0:00:17.9]} 37. Rxc4 {[%clk 0:00:22.6]}
37... dxc4 {[%clk 0:00:18.8]} 38. Bxc6 {[%clk 0:00:22]} 38... bxc6 {[%clk
0:00:19.7]} 39. Kf4 {[%clk 0:00:22.4]} 39... Kf7 {[%clk 0:00:08.4]} 40. Ke3
{[%clk 0:00:22.9]} 40... Ke7 {[%clk 0:00:04.1]} 41. Kd4 {[%clk 0:00:23.1]} 41...
Kd7 {[%clk 0:00:04.6]} 42. Kxc4 {[%clk 0:00:23.8]} 42... Kc7 {[%clk 0:00:05.2]}
43. Kc5 {[%clk 0:00:24]} 43... Kb7 {[%clk 0:00:03.9]} 44. Kd6 {[%clk 0:00:24.5]}
44... Kb6 {[%clk 0:00:04.2]} 45. Kxe6 {[%clk 0:00:24.9]} 45... c5 {[%clk
0:00:05.1]} 46. Kd5 {[%clk 0:00:25.4]} 46... Kb5 {[%clk 0:00:05.6]} 47. e6
{[%clk 0:00:26.1]} 47... c4 {[%clk 0:00:05.4]} 48. e7 {[%clk 0:00:25.8]} 48...
c3 {[%clk 0:00:05.7]} 49. e8=Q+ {[%clk 0:00:26.3]} 49... Ka5 {[%clk 0:00:05.4]}
50. Qa8+ {[%clk 0:00:26.1]} 50... Kb6 {[%clk 0:00:05.4]} 51. Qc6+ {[%clk
0:00:26.5]} 51... Ka5 {[%clk 0:00:05.2]} 52. Kc5 {[%clk 0:00:26.2]} 52... c2
{[%clk 0:00:05.1]} 53. Qb6# {[%clk 0:00:27.1]} 1-0

[Event "Early-Titled-Tuesday-Blitz-March-12-2024"]
[Site "Chess.com"]
[Date "2024.03.12"]
[Round "2"]
[White "littlepinkyboy"]
[Black "Zohid6"]
[Result "1-0"]
[WhiteElo "2639"]
[BlackElo "2901"]
[TimeControl "180+1"]
[EndTime "8:18:18 PDT"]
[Termination "littlepinkyboy won by resignation"]

1. e4 {[%clk 0:02:58.9]} 1... e5 {[%clk 0:02:59.2]} 2. Nf3 {[%clk 0:02:54.9]}
2... Nf6 {[%clk 0:02:59.1]} 3. Nxe5 {[%clk 0:02:54.5]} 3... d6 {[%clk
0:02:58.7]} 4. Nf3 {[%clk 0:02:54.8]} 4... Nxe4 {[%clk 0:02:59]} 5. d4 {[%clk
0:02:55.6]} 5... d5 {[%clk 0:02:58.6]} 6. Bd3 {[%clk 0:02:56.4]} 6... Bd6 {[%clk
0:02:59]} 7. O-O {[%clk 0:02:57]} 7... O-O {[%clk 0:02:59.2]} 8. Nc3 {[%clk
0:02:57.8]} 8... Nxc3 {[%clk 0:02:54]} 9. bxc3 {[%clk 0:02:58.7]} 9... Nc6
{[%clk 0:02:37.6]} 10. c4 {[%clk 0:02:53]} 10... dxc4 {[%clk 0:02:33.1]} 11.
Bxc4 {[%clk 0:02:53.9]} 11... Bg4 {[%clk 0:02:32]} 12. c3 {[%clk 0:02:54.3]}
12... Qf6 {[%clk 0:02:20.4]} 13. Be2 {[%clk 0:02:53.1]} 13... Rfe8 {[%clk
0:02:07.4]} 14. Re1 {[%clk 0:02:46.2]} 14... h6 {[%clk 0:01:54.9]} 15. Be3
{[%clk 0:02:23.3]} 15... Ne7 {[%clk 0:01:52.9]} 16. h3 {[%clk 0:02:18.4]} 16...
Bh5 {[%clk 0:01:42.9]} 17. Nd2 {[%clk 0:02:12.5]} 17... Bxe2 {[%clk 0:01:41]}
18. Qxe2 {[%clk 0:02:13.1]} 18... Nd5 {[%clk 0:01:34.4]} 19. Qd3 {[%clk
0:02:12.9]} 19... Rad8 {[%clk 0:01:26]} 20. Rad1 {[%clk 0:02:07.3]} 20... c6
{[%clk 0:01:06.1]} 21. c4 {[%clk 0:01:54.5]} 21... Nxe3 {[%clk 0:01:00.7]} 22.
fxe3 {[%clk 0:01:51.6]} 22... Bb8 {[%clk 0:00:51.5]} 23. Nf3 {[%clk 0:01:38.3]}
23... c5 {[%clk 0:00:48.1]} 24. d5 {[%clk 0:01:33.9]} 24... Re7 {[%clk
0:00:48.3]} 25. e4 {[%clk 0:01:25.4]} 25... Rde8 {[%clk 0:00:48.6]} 26. d6
{[%clk 0:01:19.5]} 26... Rd7 {[%clk 0:00:45.9]} 27. e5 {[%clk 0:01:19.5]} 27...
Qe6 {[%clk 0:00:46.3]} 28. Qd5 {[%clk 0:01:12.4]} 28... b6 {[%clk 0:00:46.7]}
29. Re4 {[%clk 0:00:49]} 29... Qxd5 {[%clk 0:00:46.5]} 30. Rxd5 {[%clk
0:00:43.1]} 30... f6 {[%clk 0:00:46.1]} 31. e6 {[%clk 0:00:16]} 31... Rxd6
{[%clk 0:00:45.9]} 32. Nh4 {[%clk 0:00:11.9]} 32... Kh7 {[%clk 0:00:38.6]} 33.
Nf5 {[%clk 0:00:04.1]} 33... Rdxe6 {[%clk 0:00:29.9]} 34. Rxe6 {[%clk 0:00:05]}
34... Rxe6 {[%clk 0:00:30]} 35. Rd7 {[%clk 0:00:05.8]} 35... Kg6 {[%clk
0:00:24.4]} 36. Nxg7 {[%clk 0:00:06.2]} 36... Bg3 {[%clk 0:00:22.4]} 37. Nxe6
{[%clk 0:00:05]} 37... Kf5 {[%clk 0:00:18.7]} 38. Nd8 {[%clk 0:00:05.2]} 38...
Ke4 {[%clk 0:00:17.3]} 39. Nc6 {[%clk 0:00:03.3]} 39... a5 {[%clk 0:00:17.9]}
40. Rb7 {[%clk 0:00:03]} 40... Kd3 {[%clk 0:00:18.4]} 41. Rxb6 {[%clk
0:00:03.4]} 41... Kxc4 {[%clk 0:00:19.3]} 42. Nxa5+ {[%clk 0:00:04.1]} 42... Kd3
{[%clk 0:00:19.6]} 43. Rc6 {[%clk 0:00:04.5]} 43... Be5 {[%clk 0:00:18.9]} 44.
Kf1 {[%clk 0:00:05]} 44... Bd4 {[%clk 0:00:18.8]} 45. Ke1 {[%clk 0:00:05.1]}
45... Bc3+ {[%clk 0:00:18.5]} 46. Kd1 {[%clk 0:00:04.8]} 46... Bb4 {[%clk
0:00:18.6]} 47. Nb7 {[%clk 0:00:03.4]} 47... c4 {[%clk 0:00:18.9]} 48. Nc5+
{[%clk 0:00:03.8]} 48... Kd4 {[%clk 0:00:18.9]} 49. Na4 {[%clk 0:00:04.1]} 49...
Kd3 {[%clk 0:00:18.5]} 50. Nb2+ {[%clk 0:00:04.5]} 50... Ke3 {[%clk 0:00:18.6]}
51. Nxc4+ {[%clk 0:00:05]} 51... Kf2 {[%clk 0:00:18.6]} 52. Rxf6+ {[%clk
0:00:05.7]} 52... Kxg2 {[%clk 0:00:18.9]} 53. Rxh6 {[%clk 0:00:06.6]} 53... Kf3
{[%clk 0:00:18.9]} 54. Rb6 {[%clk 0:00:05.6]} 1-0

[Event "Early-Titled-Tuesday-Blitz-March-12-2024"]
[Site "Chess.com"]
[Date "2024.03.12"]
[Round "2"]
[White "Firouzja2003"]
[Black "Yan_Dyomin2010"]
[Result "1-0"]
[WhiteElo "3140"]
[BlackElo "2720"]
[TimeControl "180+1"]
[EndTime "8:18:20 PDT"]
[Termination "Firouzja2003 won by resignation"]

1. Nf3 {[%clk 0:03:00.9]} 1... Nf6 {[%clk 0:02:59.3]} 2. g3 {[%clk 0:03:01.8]}
2... g6 {[%clk 0:02:59.5]} 3. Bg2 {[%clk 0:03:02.5]} 3... Bg7 {[%clk 0:02:59.8]}
4. O-O {[%clk 0:03:03.4]} 4... O-O {[%clk 0:02:59.9]} 5. d3 {[%clk 0:03:04.3]}
5... c5 {[%clk 0:02:59.3]} 6. Nbd2 {[%clk 0:03:05.2]} 6... Nc6 {[%clk
0:02:59.6]} 7. e4 {[%clk 0:03:06.1]} 7... d6 {[%clk 0:02:59.6]} 8. a4 {[%clk
0:03:06.2]} 8... Rb8 {[%clk 0:02:59.7]} 9. Re1 {[%clk 0:03:06.5]} 9... a6 {[%clk
0:03:00.1]} 10. c3 {[%clk 0:03:06.6]} 10... Bg4 {[%clk 0:02:59]} 11. h3 {[%clk
0:03:06.6]} 11... Bxf3 {[%clk 0:02:59.5]} 12. Nxf3 {[%clk 0:03:07.5]} 12... Nd7
{[%clk 0:02:58.7]} 13. d4 {[%clk 0:03:07.5]} 13... cxd4 {[%clk 0:02:59.6]} 14.
cxd4 {[%clk 0:03:07.8]} 14... e5 {[%clk 0:02:55.8]} 15. d5 {[%clk 0:02:55.7]}
15... Nd4 {[%clk 0:02:55.6]} 16. Be3 {[%clk 0:02:56.4]} 16... Qb6 {[%clk
0:02:53.2]} 17. h4 {[%clk 0:02:29.1]} 17... Rfc8 {[%clk 0:02:49.6]} 18. Bh3
{[%clk 0:02:26.7]} 18... Rc7 {[%clk 0:02:43.1]} 19. h5 {[%clk 0:02:18.9]} 19...
Qb4 {[%clk 0:02:37.5]} 20. h6 {[%clk 0:02:16.5]} 20... Bh8 {[%clk 0:02:37.5]}
21. Ng5 {[%clk 0:01:48.7]} 21... Nc5 {[%clk 0:02:33.1]} 22. Rc1 {[%clk
0:01:43.1]} 22... Bf6 {[%clk 0:02:24.2]} 23. Kg2 {[%clk 0:01:38.5]} 23... Qxb2
{[%clk 0:02:04.9]} 24. Nf3 {[%clk 0:01:33.9]} 24... Qb3 {[%clk 0:01:52.3]} 25.
Nxd4 {[%clk 0:01:15.7]} 25... Qxd1 {[%clk 0:01:47.3]} 26. Rexd1 {[%clk
0:01:16.6]} 26... exd4 {[%clk 0:01:47.4]} 27. Bxd4 {[%clk 0:01:17.5]} 27... Bxd4
{[%clk 0:01:47.1]} 28. Rxd4 {[%clk 0:01:18.4]} 28... Kf8 {[%clk 0:01:45.8]} 29.
a5 {[%clk 0:01:08.6]} 29... b5 {[%clk 0:01:44.4]} 30. axb6 {[%clk 0:00:53.7]}
30... Rxb6 {[%clk 0:01:44]} 31. e5 {[%clk 0:00:53.9]} 31... Ke7 {[%clk
0:01:28.5]} 32. e6 {[%clk 0:00:49.7]} 32... fxe6 {[%clk 0:01:24.5]} 33. dxe6
{[%clk 0:00:48]} 33... a5 {[%clk 0:00:45.4]} 34. Rf4 {[%clk 0:00:47.8]} 34...
Nxe6 {[%clk 0:00:36.3]} 35. Re1 {[%clk 0:00:43.7]} 35... d5 {[%clk 0:00:36.5]}
36. Re5 {[%clk 0:00:44.4]} 36... Rc4 {[%clk 0:00:27.1]} 37. Rf3 {[%clk
0:00:43.2]} 37... a4 {[%clk 0:00:19.3]} 38. Rxd5 {[%clk 0:00:42.9]} 38... Rb3
{[%clk 0:00:16.3]} 39. Re5 {[%clk 0:00:40.5]} 39... Rc6 {[%clk 0:00:14.5]} 40.
Rf4 {[%clk 0:00:38.3]} 40... a3 {[%clk 0:00:14.4]} 41. Rfe4 {[%clk 0:00:30.7]}
41... Rbb6 {[%clk 0:00:14.3]} 42. Ra4 {[%clk 0:00:31.1]} 42... Ra6 {[%clk
0:00:13.4]} 43. Rea5 {[%clk 0:00:22.6]} 43... Rxa5 {[%clk 0:00:10.2]} 44. Rxa5
{[%clk 0:00:23.5]} 44... Ng5 {[%clk 0:00:10]} 45. Rxg5 {[%clk 0:00:16.8]} 45...
Ra6 {[%clk 0:00:08.8]} 46. Re5+ {[%clk 0:00:16.5]} 46... Kd6 {[%clk 0:00:08.6]}
47. Re1 {[%clk 0:00:16.9]} 47... a2 {[%clk 0:00:08.8]} 48. Ra1 {[%clk
0:00:17.6]} 48... Kc5 {[%clk 0:00:08.8]} 49. Bd7 {[%clk 0:00:14.7]} 49... Kb4
{[%clk 0:00:08.5]} 50. Be8 {[%clk 0:00:15.1]} 50... Ra7 {[%clk 0:00:06.7]} 51.
Bc6 {[%clk 0:00:13.8]} 51... Ra5 {[%clk 0:00:06.3]} 52. Bd7 {[%clk 0:00:14.3]}
52... Ra6 {[%clk 0:00:05.4]} 53. Bc8 {[%clk 0:00:14.5]} 53... Ra7 {[%clk
0:00:03]} 54. Be6 {[%clk 0:00:14.8]} 54... g5 {[%clk 0:00:03.2]} 55. Rxa2 {[%clk
0:00:14.8]} 55... Re7 {[%clk 0:00:03.4]} 1-0